Workbook

Sheet Steuerung
B2: Flexible Plankostenrechnung
B4: Kapazitätsgrenze in Stunden | D4: 1000 | G4: Eingabefelder
B5: Beschäftigung bei Kostenermittlung/Stdn. | D5: 900 | G5: Für die Gemeinkosten können Einzelwerte oder
B6: Produktionsmenge bei Kostenermittlung | D6: 1800 | G6: direkt die Kostensummen eingeben werden
G7: Bedingungen für die Kosenberechnung
B8: Planbeschäftigung in Stunden | D8: 800 | G8: Es werden jeweils die Soll- und Plankosten für 20
G9: alternative Beschäftigungen in Stunden berechnet.
B10: Kosteneingabe getrennt nach Kostenart | G10: Die Kapatzitätsgrenze wird durch 20 geteilt und
B11: Kostenart | C11: variable Kosten | D11: fixe Kosten | E11: Gesamtkosten | G11: dann jeweils um den zwanzigsten Teil erhöht.
B12: Gemeinkostenmaterial | C12: 1000 | D12: 6000 | E12: =C12+D12 -> 7000
B13: Hilfsstoffe | C13: 5000 | D13: 1000 | E13: =C13+D13 -> 6000 | G13: Die Teilbarkeit durch 20 ist keine Bedingungen
B14: Energie | C14: 24000 | D14: 8000 | E14: 32000 | G14: für die Berechnungen. Wenn der Planbeschäftigung
B15: Fertigungslöhne | C15: 150000 | E15: 150000 | G15: in der Berechnungstabelle kein eindeutiger
B16: Hilfslöhne | C16: 5000 | D16: 20000 | E16: 25000 | G16: Wert zugeordnet werden kann, wird der Schnittpunkt
B17: Soziale Abgaben | C17: 20000 | D17: 5000 | E17: 25000 | G17: zwischen Soll- und Planbeschäftigung nur in der
B18: Abschreibungen | C18: 10000 | D18: 125000 | E18: 135000 | G18: in der grafischen Darstellung angezeigt.
B19: Sonstige Gemeinkosten | C19: 30000 | D19: 16000 | E19: 46000
B20: Kostensummen | C20: =SUM(C12:C19) -> 245000 | D20: =SUM(D12:D19) -> 181000 | E20: 426000 | G20: Istkosten können immer nur den angezeigten
G21: Beschäftigungen zugeordnet werden. (Seite Soll-Ist)
B22: Direkteingabe der | C22: variable Kosten | D22: fixe Kosten | E22: Gesamtkosten | G22: (Alternativ können die Beschäftigungsintervalle
B23: Kostensummen | G23: erweitert werden.)

Sheet Berechnungen
B2: Soll-Plan-Kostendifferenz
B4: Plangemeinkosten | D4: =IF(Steuerung!C20>0,(Steuerung!$C$20*Steuerung!$D$8)/Steuerung!$D$5+Steuerung!$D$20,(Steuerung!C23*Steuerung!D8)/Steuerung!D5+Steuerung!D23) -> 398777.7778 | E4: Euro | F4: Fixkosten | H4: Plankostenverrechnungssätze
B5: bei Planbeschäftigung | D5: =Steuerung!D8 -> 800 | E5: Stunden | F5: zu viel | G5: zu wenig | H5: PLKVS gesamt | I5: PLKVS variabel
B6: Ausgangsbeschäftigung | D6: =Steuerung!D5 -> 900 | E6: Stunden | F6: verrechnet | G6: verrechnet | H6: =D4/Steuerung!D8 -> 498.4722222 | I6: =IF(Steuerung!C20>0,Steuerung!C20/Steuerung!D5,Steuerung!C23/Steuerung!D5) -> 272.2222222
B8: Beschäftigung Stunden | C8: fixe PLGK | D8: PLKVS insgesamt | E8: verrechnete PLGK | F8: PLKVS variabel | G8: variable PLGK | H8: Sollkosten | I8: Fixkosten- differenz
B10: 0 | C10: =IF(Steuerung!$D$20>0,Steuerung!$D$20,Steuerung!$D$23) -> 181000 | D10: =$H$6 -> 498.4722222 | E10: =B10*D10 -> 0 | F10: =$I$6 -> 272.2222222 | G10: =B10*F10 -> 0 | H10: =C10+G10 -> 181000 | I10: =E10-H10 -> -181000
B11: =B30/20 -> 50 | C11: =IF(Steuerung!$D$20>0,Steuerung!$D$20,Steuerung!$D$23) -> 181000 | D11: 498.4722222 | E11: =B11*D11 -> 24923.61111 | F11: 272.2222222 | G11: =B11*F11 -> 13611.11111 | H11: =C11+G11 -> 194611.1111 | I11: =E11-H11 -> -169687.5
B12: =B11+$B$11 -> 100 | C12: =IF(Steuerung!$D$20>0,Steuerung!$D$20,Steuerung!$D$23) -> 181000 | D12: 498.4722222 | E12: 49847.22222 | F12: 272.2222222 | G12: 27222.22222 | H12: 208222.2222 | I12: -158375
B13: =B12+$B$11 -> 150 | C13: =IF(Steuerung!$D$20>0,Steuerung!$D$20,Steuerung!$D$23) -> 181000 | D13: 498.4722222 | E13: 74770.83333 | F13: 272.2222222 | G13: 40833.33333 | H13: 221833.3333 | I13: -147062.5
B14: 200 | C14: =IF(Steuerung!$D$20>0,Steuerung!$D$20,Steuerung!$D$23) -> 181000 | D14: 498.4722222 | E14: 99694.44444 | F14: 272.2222222 | G14: 54444.44444 | H14: 235444.4444 | I14: -135750
B15: 250 | C15: =IF(Steuerung!$D$20>0,Steuerung!$D$20,Steuerung!$D$23) -> 181000 | D15: 498.4722222 | E15: 124618.0556 | F15: 272.2222222 | G15: 68055.55556 | H15: 249055.5556 | I15: -124437.5
B16: 300 | C16: =IF(Steuerung!$D$20>0,Steuerung!$D$20,Steuerung!$D$23) -> 181000 | D16: 498.4722222 | E16: 149541.6667 | F16: 272.2222222 | G16: 81666.66667 | H16: 262666.6667 | I16: -113125
B17: 350 | C17: =IF(Steuerung!$D$20>0,Steuerung!$D$20,Steuerung!$D$23) -> 181000 | D17: 498.4722222 | E17: 174465.2778 | F17: 272.2222222 | G17: 95277.77778 | H17: 276277.7778 | I17: -101812.5
B18: 400 | C18: =IF(Steuerung!$D$20>0,Steuerung!$D$20,Steuerung!$D$23) -> 181000 | D18: 498.4722222 | E18: 199388.8889 | F18: 272.2222222 | G18: 108888.8889 | H18: 289888.8889 | I18: -90500
B19: 450 | C19: =IF(Steuerung!$D$20>0,Steuerung!$D$20,Steuerung!$D$23) -> 181000 | D19: 498.4722222 | E19: 224312.5 | F19: 272.2222222 | G19: 122500 | H19: 303500 | I19: -79187.5
B20: 500 | C20: =IF(Steuerung!$D$20>0,Steuerung!$D$20,Steuerung!$D$23) -> 181000 | D20: 498.4722222 | E20: 249236.1111 | F20: 272.2222222 | G20: 136111.1111 | H20: 317111.1111 | I20: -67875
B21: 550 | C21: =IF(Steuerung!$D$20>0,Steuerung!$D$20,Steuerung!$D$23) -> 181000 | D21: 498.4722222 | E21: 274159.7222 | F21: 272.2222222 | G21: 149722.2222 | H21: 330722.2222 | I21: -56562.5
B22: 600 | C22: =IF(Steuerung!$D$20>0,Steuerung!$D$20,Steuerung!$D$23) -> 181000 | D22: 498.4722222 | E22: 299083.3333 | F22: 272.2222222 | G22: 163333.3333 | H22: 344333.3333 | I22: -45250
B23: 650 | C23: =IF(Steuerung!$D$20>0,Steuerung!$D$20,Steuerung!$D$23) -> 181000 | D23: 498.4722222 | E23: 324006.9444 | F23: 272.2222222 | G23: 176944.4444 | H23: 357944.4444 | I23: -33937.5
B24: 700 | C24: =IF(Steuerung!$D$20>0,Steuerung!$D$20,Steuerung!$D$23) -> 181000 | D24: 498.4722222 | E24: 348930.5556 | F24: 272.2222222 | G24: 190555.5556 | H24: 371555.5556 | I24: -22625
B25: 750 | C25: =IF(Steuerung!$D$20>0,Steuerung!$D$20,Steuerung!$D$23) -> 181000 | D25: 498.4722222 | E25: 373854.1667 | F25: 272.2222222 | G25: 204166.6667 | H25: 385166.6667 | I25: -11312.5
B26: 800 | C26: =IF(Steuerung!$D$20>0,Steuerung!$D$20,Steuerung!$D$23) -> 181000 | D26: 498.4722222 | E26: 398777.7778 | F26: 272.2222222 | G26: 217777.7778 | H26: 398777.7778 | I26: 0
B27: 850 | C27: =IF(Steuerung!$D$20>0,Steuerung!$D$20,Steuerung!$D$23) -> 181000 | D27: 498.4722222 | E27: 423701.3889 | F27: 272.2222222 | G27: 231388.8889 | H27: 412388.8889 | I27: 11312.5
B28: 900 | C28: =IF(Steuerung!$D$20>0,Steuerung!$D$20,Steuerung!$D$23) -> 181000 | D28: 498.4722222 | E28: 448625 | F28: 272.2222222 | G28: 245000 | H28: 426000 | I28: 22625
B29: 950 | C29: =IF(Steuerung!$D$20>0,Steuerung!$D$20,Steuerung!$D$23) -> 181000 | D29: 498.4722222 | E29: 473548.6111 | F29: 272.2222222 | G29: 258611.1111 | H29: 439611.1111 | I29: 33937.5
B30: =Steuerung!D4 -> 1000 | C30: =IF(Steuerung!$D$20>0,Steuerung!$D$20,Steuerung!$D$23) -> 181000 | D30: 498.4722222 | E30: 498472.2222 | F30: 272.2222222 | G30: 272222.2222 | H30: 453222.2222 | I30: 45250

Sheet Soll-Ist
B2: Soll-Ist-Kostenvergleich
B4: Tragen Sie die Istbeschäftigung und die Istkosten für die entsprechende | F4: Istbeschäftigung
B5: Beschäftigung in der Spalte Istkosten ein. | F5: 800
H6: Beschäftiungs- | I6: Verbrauchs- | J6: Gesamt-
B7: Beschäftigung/Stdn. | C7: fixe PLGK | D7: verrechnete PLGK | E7: Sollkosten | F7: Istkosten | G7: verrechnete PLGK | H7: B-abweichung | I7: V-abweichung | J7: G-abweichung | L7: Abweichungsanalyse
B8: =Berechnungen!B10 -> 0 | C8: =Berechnungen!C10 -> 181000 | D8: =Berechnungen!E10 -> 0 | E8: =Berechnungen!H10 -> 181000 | G8: =IF(F8>0,Berechnungen!H10,"") ->  | H8: =IF(F8>0,$M$20*-1,"") ->  | I8: =IF(F8>0,$M$24,"") ->  | J8: =IF(F8>0,H8+I8,"") ->  | L8: Beschäftigungsabweichungen sind durch die
B9: =Berechnungen!B11 -> 50 | C9: =Berechnungen!C11 -> 181000 | D9: =Berechnungen!E11 -> 24923.61111 | E9: =Berechnungen!H11 -> 194611.1111 | G9: =IF(F9>0,Berechnungen!H11,"") ->  | H9: =IF(F9>0,$M$20*-1,"") ->  | I9: =IF(F9>0,$M$24,"") ->  | J9: =IF(F9>0,H9+I9,"") ->  | L9: Marktlage bzw. durch die Absatzabteilung begründet.
B10: =Berechnungen!B12 -> 100 | C10: =Berechnungen!C12 -> 181000 | D10: =Berechnungen!E12 -> 49847.22222 | E10: =Berechnungen!H12 -> 208222.2222 | G10: =IF(F10>0,Berechnungen!H12,"") ->  | L10: Verbauchsabweichungen sind produktionsbedingt
B11: =Berechnungen!B13 -> 150 | C11: =Berechnungen!C13 -> 181000 | D11: =Berechnungen!E13 -> 74770.83333 | E11: =Berechnungen!H13 -> 221833.3333 | G11: =IF(F11>0,Berechnungen!H13,"") ->  | L11: und erfordern eine Kontrolle technischen Anlagen
B12: =Berechnungen!B14 -> 200 | C12: =Berechnungen!C14 -> 181000 | D12: =Berechnungen!E14 -> 99694.44444 | E12: =Berechnungen!H14 -> 235444.4444 | G12: =IF(F12>0,Berechnungen!H14,"") ->  | L12: und Arbeitsabläufe.
B13: =Berechnungen!B15 -> 250 | C13: =Berechnungen!C15 -> 181000 | D13: =Berechnungen!E15 -> 124618.0556 | E13: =Berechnungen!H15 -> 249055.5556 | G13: =IF(F13>0,Berechnungen!H15,"") -> 
B14: =Berechnungen!B16 -> 300 | C14: =Berechnungen!C16 -> 181000 | D14: =Berechnungen!E16 -> 149541.6667 | E14: =Berechnungen!H16 -> 262666.6667 | G14: =IF(F14>0,Berechnungen!H16,"") ->  | L14: Verrechnete Plangemeinkosten | M14: =VLOOKUP($F$5,$B$8:$E$28,3) -> 398777.7778
B15: =Berechnungen!B17 -> 350 | C15: =Berechnungen!C17 -> 181000 | D15: =Berechnungen!E17 -> 174465.2778 | E15: =Berechnungen!H17 -> 276277.7778 | G15: =IF(F15>0,Berechnungen!H17,"") ->  | L15: - Istkosten | M15: =VLOOKUP($F$5,$B$8:$F$28,5) -> 398777.78
B16: =Berechnungen!B18 -> 400 | C16: =Berechnungen!C18 -> 181000 | D16: =Berechnungen!E18 -> 199388.8889 | E16: =Berechnungen!H18 -> 289888.8889 | G16: =IF(F16>0,Berechnungen!H18,"") ->  | L16: = Gesamtabweichung | M16: =M14-M15 -> -0.002222222276
B17: =Berechnungen!B19 -> 450 | C17: =Berechnungen!C19 -> 181000 | D17: =Berechnungen!E19 -> 224312.5 | E17: =Berechnungen!H19 -> 303500 | G17: =IF(F17>0,Berechnungen!H19,"") -> 
B18: =Berechnungen!B20 -> 500 | C18: =Berechnungen!C20 -> 181000 | D18: =Berechnungen!E20 -> 249236.1111 | E18: =Berechnungen!H20 -> 317111.1111 | G18: =IF(F18>0,Berechnungen!H20,"") ->  | L18: Verrechnete Plangemeinkosten | M18: =M14 -> 398777.7778
B19: =Berechnungen!B21 -> 550 | C19: =Berechnungen!C21 -> 181000 | D19: =Berechnungen!E21 -> 274159.7222 | E19: =Berechnungen!H21 -> 330722.2222 | G19: =IF(F19>0,Berechnungen!H21,"") ->  | L19: - Sollkosten | M19: =VLOOKUP($F$5,$B$8:$E$28,4) -> 398777.7778
B20: =Berechnungen!B22 -> 600 | C20: =Berechnungen!C22 -> 181000 | D20: =Berechnungen!E22 -> 299083.3333 | E20: =Berechnungen!H22 -> 344333.3333 | G20: =IF(F20>0,Berechnungen!H22,"") ->  | L20: = Beschäftigungsabweichung | M20: =M18-M19 -> 0
B21: =Berechnungen!B23 -> 650 | C21: =Berechnungen!C23 -> 181000 | D21: =Berechnungen!E23 -> 324006.9444 | E21: =Berechnungen!H23 -> 357944.4444 | G21: =IF(F21>0,Berechnungen!H23,"") -> 
B22: =Berechnungen!B24 -> 700 | C22: =Berechnungen!C24 -> 181000 | D22: =Berechnungen!E24 -> 348930.5556 | E22: =Berechnungen!H24 -> 371555.5556 | G22: =IF(F22>0,Berechnungen!H24,"") ->  | L22: Istkosten | M22: =VLOOKUP($F$5,$B$8:$F$28,5) -> 398777.78
B23: =Berechnungen!B25 -> 750 | C23: =Berechnungen!C25 -> 181000 | D23: =Berechnungen!E25 -> 373854.1667 | E23: =Berechnungen!H25 -> 385166.6667 | G23: =IF(F23>0,Berechnungen!H25,"") ->  | L23: - Sollkosten | M23: =VLOOKUP($F$5,$B$8:$E$28,4) -> 398777.7778
B24: =Berechnungen!B26 -> 800 | C24: =Berechnungen!C26 -> 181000 | D24: =Berechnungen!E26 -> 398777.7778 | E24: =Berechnungen!H26 -> 398777.7778 | F24: 398777.78 | G24: =IF(F24>0,Berechnungen!H26,"") -> 398777.7778 | H24: 0 | I24: 0.002222222276 | J24: 0.002222222276 | L24: = Verbrauchsabweichung | M24: =M22-M23 -> 0.002222222276
B25: =Berechnungen!B27 -> 850 | C25: =Berechnungen!C27 -> 181000 | D25: =Berechnungen!E27 -> 423701.3889 | E25: =Berechnungen!H27 -> 412388.8889 | G25: =IF(F25>0,Berechnungen!H27,"") -> 
B26: =Berechnungen!B28 -> 900 | C26: =Berechnungen!C28 -> 181000 | D26: =Berechnungen!E28 -> 448625 | E26: =Berechnungen!H28 -> 426000 | G26: =IF(F26>0,Berechnungen!H28,"") ->  | L26: Beschäftigungsabweichung | M26: =M20 -> 0
B27: =Berechnungen!B29 -> 950 | C27: =Berechnungen!C29 -> 181000 | D27: =Berechnungen!E29 -> 473548.6111 | E27: =Berechnungen!H29 -> 439611.1111 | G27: =IF(F27>0,Berechnungen!H29,"") ->  | L27: + Verbrauchsabweichung | M27: =M24*-1 -> -0.002222222276
B28: =Berechnungen!B30 -> 1000 | C28: =Berechnungen!C30 -> 181000 | D28: =Berechnungen!E30 -> 498472.2222 | E28: =Berechnungen!H30 -> 453222.2222 | G28: =IF(F28>0,Berechnungen!H30,"") ->  | L28: = Gesamtabweichung | M28: =M16 -> -0.002222222276

Sheet Grafik

Sheet Selbstkosten
B2: Selbskostenkalkulation
B4: Geben Sie die gesamten Kosten für Fertigungsmaterial
B5: und die Gemeinkostenzuschlagssaätze an.
B6: Planeinzelkosten für Fertigungsmaterial | C6: 80000
B7: Materialgemeinkosten | C7: 0.1
B8: Verwaltungsgemeinkosten | C8: 0.15
B9: Vertriebsgemeinkosten | C9: 0.05
B11: Beschäftigung bei Kostenermittlung | C11: =Steuerung!D5 -> 900
B12: Planeinzelkosten | C12: =C6/C11 -> 88.88888889
B13: Produktionsmenge bei Kostenermittlung | C13: =Steuerung!D6 -> 1800
B14: Fertigungszeit je Stück | C14: =(C11/C13)*60 -> 30
B15: Plankostenverrechnungssatz | C15: =Berechnungen!H6 -> 498.4722222
B16: Planfertigunsgkosten je Stück | C16: =(C15*C14)/60 -> 249.2361111
B18: Ermittlung der Selbstkosten je Stück
B20: Fertigungsmaterial | C20: =C12 -> 88.88888889
B21: + Materialgemeinkosten | C21: =C20*C7 -> 8.888888889
B22: = Planmaterialkosten | C22: =C20+C21 -> 97.77777778
B23: + Planfertigungskosten | C23: =C16 -> 249.2361111
B24: = Planherstellkosten | C24: =C22+C23 -> 347.0138889
B25: + Verwaltungsgemeinkosten | C25: =C24*C8 -> 52.05208333
B26: + Vertriebsgemeinkosten | C26: =C24*C9 -> 17.35069444
B27: = Planselbstkosten je Stück | C27: =C24+C25+C26 -> 416.4166667
